fUSD/lending_fUSD_20250101
["ID","MTS","AMOUNT","RATE_DAILY","PERIOD"]
[347405084,1735769433672,-1372.81,0.00010958,2]
[347405085,1735769433682,-500.0,0.00010958,2]
[347405086,1735769433692,-1457.74,0.00010958,2]
[347405087,1735769433701,-500.0,0.00010958,2]
[347405088,1735769433712,-500.0,0.00010958,2]
[347405089,1735769433721,-500.0,0.00010958,2]
[347405090,1735769433731,-502.41064141,0.00010958,2]
[347405091,1735769433741,-626.87,0.00010958,2]
[347405092,1735769433750,-2941.21,0.00010958,2]
[347405093,1735769433759,-1900.92,0.00010958,2]
[347405094,1735769433769,-866.321989,0.00010958,2]
[347405095,1735769433779,-157.00503,0.00010958,2]
[347405096,1735769433788,-500.0,0.00010958,2]
[347405097,1735769433798,-11612.64,0.00010958,2]
[347405098,1735769433808,-845.3,0.00010958,2]
[347405099,1735769433818,-500.0,0.00010958,2]
[347405100,1735769433827,-1034.58,0.00010958,2]
[347405101,1735769433837,-500.0,0.00010958,2]
[347405102,1735769433846,-2094.99,0.00010958,2]
[347405103,1735769433858,-5403.13,0.00010958,2]
[347405104,1735769433868,-574.64,0.00010958,2]
[347405105,1735769433878,-611.39,0.00010958,2]
[347405106,1735769433889,-500.0,0.00010958,2]
[347405107,1735769433899,-504.45,0.00010958,2]
[347405108,1735769433908,-500.0,0.00010958,2]
[347405109,1735769433918,-500.0,0.00010958,2]
[347405110,1735769433927,-1351.07,0.00010958,2]
[347405111,1735769433939,-674.56,0.00010958,2]
[347405112,1735769433949,-500.0,0.00010958,2]
[347405113,1735769433958,-500.0,0.00010958,2]
[347405114,1735769433968,-500.0,0.00010958,2]
[347405115,1735769433977,-500.0,0.00010958,2]
[347405116,1735769433987,-500.0,0.00010958,2]
[347405117,1735769433997,-2733.67,0.00010958,2]
[347405118,1735769434006,-1175.004006,0.00010958,2]
[347405119,1735769434016,-500.0,0.00010958,2]
[347405120,1735769434026,-500.0,0.00010958,2]
[347405121,1735769434036,-512.44,0.00010958,2]
[347405122,1735769434045,-542.38,0.00010958,2]
[347405123,1735769434055,-1745.82,0.00010958,2]
[347405124,1735769434064,-500.0,0.00010958,2]
[347405125,1735769434073,-500.0,0.00010958,2]
[347405126,1735769434083,-1674.19,0.00010958,2]
[347405127,1735769434092,-500.0,0.00010958,2]
[347405128,1735769434102,-10919.34,0.00010958,2]
[347405129,1735769434112,-952.44,0.00010958,2]
[347405130,1735769434122,-510.42,0.00010958,2]
[347405131,1735769434131,-3328.99,0.00010958,2]
[347405132,1735769434141,-529.98,0.00010958,2]
[347405133,1735769434151,-500.0,0.00010958,2]
[347405134,1735769434160,-934.82,0.00010958,2]
[347405135,1735769434171,-601.62,0.00010958,2]
[347405136,1735769434180,-500.0,0.00010958,2]
[347405137,1735769434190,-500.0,0.00010958,2]
[347405138,1735769434199,-500.0,0.00010958,2]
[347405139,1735769434209,-500.0,0.00010958,2]
[347405140,1735769434219,-500.0,0.00010958,2]
[347405141,1735769434228,-500.0,0.00010958,2]
[347405142,1735769434238,-500.0,0.00010958,2]
[347405143,1735769434248,-500.0,0.00010958,2]
[347405144,1735769434258,-500.0,0.00010958,2]
[347405145,1735769434267,-1005.52,0.00010958,2]
[347405146,1735769434277,-500.0,0.00010958,2]
[347405147,1735769434287,-500.0,0.00010958,2]
[347405148,1735769434297,-500.0,0.00010958,2]
[347405149,1735769434307,-511.91,0.00010958,2]
[347405150,1735769434317,-500.0,0.00010958,2]
[347405151,1735769434327,-500.0,0.00010958,2]
[347405152,1735769434337,-500.0,0.00010958,2]
[347405153,1735769434347,-500.0,0.00010958,2]
[347405154,1735769434357,-883.69,0.00010958,2]
[347405155,1735769434367,-1898.53,0.00010958,2]
[347405156,1735769434377,-745.73,0.00010958,2]
[347405157,1735769434387,-1003.84,0.00010958,2]
[347405158,1735769434397,-500.0,0.00010958,2]
[347405159,1735769434407,-505.73,0.00010958,2]
[347405160,1735769434417,-592.84,0.00010958,2]
[347405161,1735769434429,-500.0,0.00010958,2]
[347405162,1735769434439,-1061.04,0.00010958,2]
[347405163,1735769434449,-500.0,0.00010958,2]
[347405164,1735769434460,-500.0,0.00010958,2]
[347405165,1735769434471,-1483.36,0.00010958,2]
[347405166,1735769434482,-667.22,0.00010958,2]
[347405167,1735769434492,-500.0,0.00010958,2]
[347405168,1735769434503,-500.0,0.00010958,2]
[347405169,1735769434513,-612.52,0.00010958,2]
[347405170,1735769434523,-546.24,0.00010958,2]
[347405171,1735769434806,-500.0,0.00010958,2]
[347405172,1735769434816,-500.0,0.00010958,2]
[347405173,1735769434826,-779.84,0.00010958,2]
[347405174,1735769434836,-811.88,0.00010958,2]
[347405175,1735769434845,-500.0,0.00010958,2]
[347405176,1735769434854,-500.0,0.00010958,2]
[347405177,1735769434866,-501.21,0.00010958,2]
[347405178,1735769434876,-848.52,0.00010958,2]
[347405179,1735769434885,-1162.57,0.00010958,2]
[347405180,1735769434894,-500.0,0.00010958,2]
[347405181,1735769434905,-500.0,0.00010958,2]
[347405182,1735769434914,-3522.83,0.00010958,2]
[347405183,1735769434924,-774.1,0.00010958,2]
[347405184,1735769434935,-3964.4,0.00010958,2]
[347405185,1735769434945,-629.36,0.00010958,2]
[347405186,1735769434955,-1490.06,0.00010958,2]
[347405187,1735769434964,-500.0,0.00010958,2]
[347405188,1735769434972,-1453.71,0.00010958,2]
[347405189,1735769434982,-500.0,0.00010958,2]
[347405190,1735769434991,-500.0,0.00010958,2]
[347405191,1735769435000,-1130.42,0.00010958,2]
[347405192,1735769435009,-510.72,0.00010958,2]
[347405193,1735769435018,-500.0,0.00010958,2]
[347405194,1735769435028,-500.0,0.00010958,2]
[347405195,1735769435037,-500.0,0.00010958,2]
[347405196,1735769435047,-500.0,0.00010958,2]
[347405197,1735769435056,-500.0,0.00010958,2]
[347405198,1735769435066,-926.26,0.00010958,2]
[347405199,1735769435076,-500.0,0.00010958,2]
[347405200,1735769435086,-815.96,0.00010958,2]
[347405201,1735769435095,-500.0,0.00010958,2]
[347405202,1735769435104,-403.31135243,0.00010958,2]
[347405203,1735769435114,-500.0,0.00010958,2]
[347405204,1735769435123,-684.43,0.00010958,2]
[347405205,1735769435132,-500.0,0.00010958,2]
[347405206,1735769435141,-527.81,0.00010958,2]
[347405207,1735769435150,-1119.64,0.00010958,2]
[347405208,1735769435160,-500.0,0.00010958,2]
[347405209,1735769435170,-500.0,0.00010958,2]
[347405210,1735769435180,-500.0,0.00010958,2]
[347405211,1735769435189,-500.0,0.00010958,2]
[347405212,1735769435198,-1928.82,0.00010958,2]
[347405213,1735769435207,-2918.63,0.00010958,2]
[347405214,1735769435217,-500.0,0.00010958,2]
[347405215,1735769435226,-500.0,0.00010958,2]
[347405216,1735769435235,-851.07,0.00010958,2]
[347405217,1735769435245,-1737.73,0.00010958,2]
[347405218,1735769435254,-500.0,0.00010958,2]
[347405219,1735769435263,-544.09567914,0.00010958,2]
[347405220,1735769435272,-500.0,0.00010958,2]
[347405221,1735769435282,-500.0,0.00010958,2]
[347405222,1735769435291,-657.01,0.00010958,2]
[347405223,1735769435300,-961.23,0.00010958,2]
[347405224,1735769435309,-500.0,0.00010958,2]
[347405225,1735769435319,-604.43,0.00010958,2]
[347405226,1735769435328,-904.16,0.00010958,2]
[347405227,1735769435337,-904.0,0.00010958,2]
[347405228,1735769435346,-540.51,0.00010958,2]
[347405229,1735769435356,-562.11,0.00010958,2]
[347405230,1735769435365,-641.83,0.00010958,2]
[347405231,1735769435375,-500.0,0.00010958,2]
[347405232,1735769435384,-500.0,0.00010958,2]
[347405233,1735769435394,-500.0,0.00010958,2]
[347405234,1735769435404,-500.0,0.00010958,2]
[347405235,1735769435414,-1530.51,0.00010958,2]
[347405236,1735769435424,-500.0,0.00010958,2]
[347405237,1735769435433,-500.0,0.00010958,2]
[347405238,1735769435443,-500.0,0.00010958,2]
[347405239,1735769435453,-500.0,0.00010958,2]
[347405240,1735769435462,-1276.16,0.00010958,2]
[347405241,1735769435471,-500.0,0.00010958,2]
[347405242,1735769435481,-10530.92,0.00010958,2]
[347405243,1735769435490,-500.0,0.00010958,2]
[347405244,1735769435499,-500.0,0.00010958,2]
[347405245,1735769435509,-500.0,0.00010958,2]
[347405246,1735769435518,-500.0,0.00010958,2]
[347405247,1735769435527,-1206.47,0.00010958,2]
[347405248,1735769435537,-500.0,0.00010958,2]
[347405249,1735769435546,-1366.62,0.00010958,2]
[347405250,1735769435556,-500.0,0.00010958,2]
[347405251,1735769435567,-851.84,0.00010958,2]
[347405252,1735769435576,-3310.29,0.00010958,2]
[347405253,1735769435586,-500.0,0.00010958,2]
[347405254,1735769435595,-1269.48,0.00010958,2]
[347405255,1735769435604,-196.71908646,0.00010958,2]
[347405256,1735769435613,-1348.67,0.00010958,2]
[347405257,1735769435622,-500.0,0.00010958,2]
[347405258,1735769435631,-500.0,0.00010958,2]
[347405259,1735769435641,-564.5,0.00010958,2]
[347405260,1735769435650,-500.0,0.00010958,2]
[347405261,1735769435659,-1289.1,0.00010958,2]
[347405262,1735769435668,-500.0,0.00010958,2]
[347405263,1735769435678,-849.24,0.00010958,2]
[347405264,1735769435688,-741.87,0.00010958,2]
[347405265,1735769435699,-500.0,0.00010958,2]
[347405266,1735769435709,-1108.18,0.00010958,2]
[347405267,1735769435718,-500.0,0.00010958,2]
[347405268,1735769435728,-500.0,0.00010958,2]
[347405269,1735769435737,-500.0,0.00010958,2]
[347405270,1735769435746,-500.0,0.00010958,2]
[347405271,1735769435756,-1328.02,0.00010958,2]
[347405272,1735769435765,-591.66028167,0.00010958,2]
[347405273,1735769435774,-1188.89,0.00010958,2]
[347405274,1735769435783,-1594.38,0.00010958,2]
[347405275,1735769435793,-639.34,0.00010958,2]
[347405276,1735769435802,-500.0,0.00010958,2]
[347405277,1735769435811,-500.0,0.00010958,2]
[347405278,1735769435821,-4006.96,0.00010958,2]
[347405279,1735769435830,-2297.8,0.00010958,2]
[347405280,1735769435839,-1514.07,0.00010958,2]
[347405281,1735769435848,-500.0,0.00010958,2]
[347405282,1735769435859,-890.01,0.00010958,2]
[347405283,1735769435871,-500.0,0.00010958,2]
[347405284,1735769435880,-500.0,0.00010958,2]
[347405285,1735769435891,-500.0,0.00010958,2]
[347405286,1735769435899,-500.0,0.00010958,2]
[347405287,1735769435911,-500.0,0.00010958,2]
[347405288,1735769435920,-1626.5,0.00010958,2]
[347405289,1735769435931,-500.0,0.00010958,2]
[347405290,1735769435942,-513.4,0.00010958,2]
[347405291,1735769435951,-615.95,0.00010958,2]
[347405292,1735769435960,-500.0,0.00010958,2]
[347405293,1735769435969,-500.0,0.00010958,2]
[347405294,1735769435978,-516.93964305,0.00010958,2]
[347405295,1735769435987,-2315.36,0.00010958,2]
[347405296,1735769435997,-997.68,0.00010958,2]
[347405297,1735769436006,-783.41,0.00010958,2]
[347405298,1735769436015,-500.0,0.00010958,2]
[347405299,1735769436024,-500.0,0.00010958,2]
[347405300,1735769436033,-659.55,0.00010958,2]
[347405301,1735769436042,-500.0,0.00010958,2]
[347405302,1735769436051,-500.0,0.00010958,2]
[347405303,1735769436060,-1491.56,0.00010958,2]
[347405304,1735769436069,-500.0,0.00010958,2]
[347405305,1735769436078,-7128.92,0.00010958,2]
[347405306,1735769436087,-500.0,0.00010958,2]
[347405307,1735769436096,-500.0,0.00010958,2]
[347405308,1735769436105,-500.0,0.00010958,2]
[347405309,1735769436114,-979.59,0.00010958,2]
[347405310,1735769436124,-500.0,0.00010958,2]
[347405311,1735769436133,-500.0,0.00010958,2]
[347405312,1735769436142,-630.92,0.00010958,2]
[347405313,1735769436151,-500.0,0.00010958,2]
[347405314,1735769436160,-500.0,0.00010958,2]
[347405315,1735769436169,-1142.11,0.00010958,2]
[347405316,1735769436179,-1042.4,0.00010958,2]
[347405317,1735769436189,-500.0,0.00010958,2]
[347405318,1735769436199,-1735.28,0.00010958,2]
[347405319,1735769436208,-500.0,0.00010958,2]
[347405320,1735769436217,-1038.62,0.00010958,2]
[347405321,1735769436227,-2570.5,0.00010958,2]
[347405322,1735769436236,-500.0,0.00010958,2]
[347405323,1735769436245,-760.47,0.00010958,2]
[347405324,1735769436254,-1521.15,0.00010958,2]
[347405325,1735769436263,-500.0,0.00010958,2]
[347405326,1735769436272,-500.0,0.00010958,2]
[347405327,1735769436281,-1235.88,0.00010958,2]
[347405328,1735769436290,-599.16,0.00010958,2]
[347405329,1735769436300,-1431.28,0.00010958,2]
[347405330,1735769436309,-650.49,0.00010958,2]
[347405331,1735769436318,-1616.75,0.00010958,2]
[347405332,1735769436327,-500.0,0.00010958,2]
[347405333,1735769436336,-500.0,0.00010958,2]
[347405334,1735769436345,-2588.82,0.00010958,2]
[347405335,1735769436355,-628.47,0.00010958,2]
[347405336,1735769436364,-500.0,0.00010958,2]
[347405337,1735769436373,-500.0,0.00010958,2]
[347405338,1735769436382,-500.0,0.00010958,2]
[347405339,1735769436391,-644.17,0.00010958,2]
[347405340,1735769436401,-1776.04,0.00010958,2]
[347405341,1735769436410,-1739.55,0.00010958,2]
[347405342,1735769436419,-527.96,0.00010958,2]
[347405343,1735769436429,-2304.32,0.00010958,2]
[347405344,1735769436439,-1684.76,0.00010958,2]
[347405345,1735769436448,-1180.39,0.00010958,2]
[347405346,1735769436457,-500.0,0.00010958,2]
[347405347,1735769436466,-1141.94,0.00010958,2]
[347405348,1735769436475,-500.0,0.00010958,2]
[347405349,1735769436485,-3802.72,0.00010958,2]
[347405350,1735769436494,-540.89,0.00010958,2]
[347405351,1735769436503,-500.0,0.00010958,2]
[347405352,1735769436512,-500.0,0.00010958,2]
[347405353,1735769436521,-500.0,0.00010958,2]
[347405354,1735769436530,-618.52,0.00010958,2]
[347405355,1735769436539,-500.0,0.00010958,2]
[347405356,1735769436548,-1023.13,0.00010958,2]
[347405357,1735769436557,-563.08,0.00010958,2]
[347405358,1735769436566,-500.0,0.00010958,2]
[347405359,1735769436576,-500.0,0.00010958,2]
[347405360,1735769436585,-500.0,0.00010958,2]
[347405361,1735769436594,-1189.47,0.00010958,2]
[347405362,1735769436603,-500.0,0.00010958,2]
[347405363,1735769436612,-1725.87,0.00010958,2]
[347405364,1735769436622,-630.46,0.00010958,2]
[347405365,1735769436631,-1056.73,0.00010958,2]
[347405366,1735769436640,-500.0,0.00010958,2]
[347405367,1735769436650,-500.0,0.00010958,2]
[347405368,1735769436659,-436.1569389,0.00010958,2]
[347405369,1735769436669,-740.09,0.00010958,2]
[347405370,1735769436680,-1995.03,0.00010958,2]
[347405371,1735769436690,-500.0,0.00010958,2]
[347405372,1735769436699,-500.0,0.00010958,2]
[347405373,1735769436708,-867.98,0.00010958,2]
[347405374,1735769436718,-559.71,0.00010958,2]
[347405375,1735769436727,-2018.86,0.00010958,2]
[347405376,1735769436736,-1134.09,0.00010958,2]
[347405377,1735769436745,-1133.84,0.00010958,2]
[347405378,1735769436755,-500.0,0.00010958,2]
[347405379,1735769436764,-1038.35,0.00010958,2]
[347405380,1735769436773,-5377.39,0.00010958,2]
[347405381,1735769436783,-1752.91,0.00010958,2]
[347405382,1735769436792,-652.86,0.00010958,2]
[347405383,1735769436802,-500.0,0.00010958,2]
[347405384,1735769436811,-945.88,0.00010958,2]
[347405385,1735769436820,-500.0,0.00010958,2]
[347405386,1735769436829,-685.92,0.00010958,2]
[347405387,1735769436839,-905.09,0.00010958,2]
[347405388,1735769436848,-1179.61,0.00010958,2]
[347405389,1735769436861,-683.02,0.00010958,2]
[347405390,1735769436870,-3214.24,0.00010958,2]
[347405391,1735769436879,-912.13,0.00010958,2]
[347405392,1735769436889,-500.0,0.00010958,2]
[347405393,1735769436899,-8877.56,0.00010958,2]
[347405394,1735769436908,-1753.75,0.00010958,2]
[347405395,1735769436917,-500.0,0.00010958,2]
[347405396,1735769436928,-1275.39,0.00010958,2]
[347405397,1735769436938,-551.67,0.00010958,2]
[347405398,1735769436948,-733.77,0.00010958,2]
[347405399,1735769436957,-464.51064599,0.00010958,2]
[347405400,1735769437498,-716.47935401,0.00010958,2]
[347405401,1735769437508,-1057.53076684,0.00010958,2]
[347405402,1735769437525,-187.42923316,0.00010958,2]
[347405403,1735769437535,-625.82,0.00010958,2]
[347405404,1735769437543,-1645.99,0.00010958,2]
[347405405,1735769437553,-1429.33,0.00010958,2]
[347405406,1735769437562,-2198.93,0.00010958,2]
[347405407,1735769437571,-13187.97129838,0.00010958,2]
[347405408,1735769437583,-5648.18870162,0.00010958,2]
[347405409,1735769437591,-500.18172553,0.00010958,2]
[347405410,1735769437601,-4134.35,0.00010958,2]
[347405411,1735769437610,-186.07957285,0.00010958,2]
[347405412,1735769437621,-47.45238094,0.00010958,2]
[347405413,1735769437631,-500.0,0.00010958,2]
[347405414,1735769437640,-1079.61,0.00010958,2]
[347405415,1735769437650,-470.66708752,0.00010958,2]
[347405416,1735769437661,-29.33291248,0.00010958,2]
[347405417,1735769437671,-500.0,0.00010958,2]
[347405418,1735769437682,-500.0,0.00010958,2]
[347405419,1735769437692,-500.0,0.00010958,2]
[347405420,1735769437701,-573.54,0.00010958,2]
[347405421,1735769437709,-1045.73708752,0.00010958,2]
[347405469,1735769439263,-672.672,0.00010958,2]
[347405470,1735769439274,-807.68507443,0.00010958,2]
[347405471,1735769439286,-660.86583805,0.00010958,2]
[347405472,1735769439295,-500.0,0.00010958,2]
[347405473,1735769439304,-500.0,0.00010958,2]
[347405474,1735769439314,-162.71532944,0.00010958,2]
[347405475,1735769439325,-337.28467056,0.00010958,2]
[347405476,1735769439334,-168.29838042,0.00010958,2]
[347405477,1735769439345,-420.32161958,0.00010958,2]
[347405478,1735769439355,-500.0,0.00010958,2]
[347405479,1735769439364,-500.0,0.00010958,2]
[347405480,1735769439373,-29.75837021,0.00010958,2]
[347405481,1735769439384,-470.24162979,0.00010958,2]
[347405482,1735769439393,-1018.0,0.00010958,2]
[347405483,1735769439403,-911.69,0.00010958,2]
[347405484,1735769439412,-500.0,0.00010958,2]
[347405485,1735769439421,-2404.83,0.00010958,2]
[347405486,1735769439431,-207.02410949,0.00010958,2]
[347405487,1735769439443,-4049.73589051,0.00010958,2]
[347405488,1735769439452,-500.0,0.00010958,2]
[347405489,1735769439462,-4057.02,0.00010958,2]
[347405490,1735769439471,-500.0,0.00010958,2]
[347405491,1735769439480,-500.0,0.00010958,2]
[347405492,1735769439490,-538.58,0.00010958,2]
[347405493,1735769439500,-1051.85,0.00010958,2]
[347405494,1735769439509,-1268.24,0.00010958,2]
[347405495,1735769439519,-500.0,0.00010958,2]
[347405496,1735769439528,-500.0,0.00010958,2]
[347405497,1735769439538,-500.0,0.00010958,2]
[347405498,1735769439547,-500.0,0.00010958,2]
[347405499,1735769439557,-11133.12,0.00010958,2]
[347405500,1735769439566,-500.0,0.00010958,2]
[347405501,1735769439575,-590.15,0.00010958,2]
[347405502,1735769439585,-500.0,0.00010958,2]
[347405503,1735769439595,-500.0,0.00010958,2]
[347405504,1735769439604,-500.0,0.00010958,2]
[347405505,1735769439614,-500.0,0.00010958,2]
[347405506,1735769439624,-500.0,0.00010958,2]
[347405507,1735769439633,-500.0,0.00010958,2]
[347405508,1735769439643,-1131.39,0.00010958,2]
[347405509,1735769439653,-1465.49,0.00010958,2]
[347405510,1735769439662,-500.0,0.00010958,2]
[347405511,1735769439671,-684.34,0.00010958,2]
[347405513,1735769439681,-500.0,0.00010958,2]
[347405515,1735769439690,-500.0,0.00010958,2]
[347405517,1735769439699,-500.0,0.00010958,2]
[347405518,1735769439709,-500.39547438,0.00010958,2]
[347405519,1735769439718,-713.3,0.00010958,2]
[347405520,1735769439729,-1629.52,0.00010958,2]
[347405521,1735769439739,-500.0,0.00010958,2]
[347405522,1735769439748,-500.0,0.00010958,2]
[347405523,1735769439757,-2040.21,0.00010958,2]
[347405524,1735769439765,-1209.28,0.00010958,2]
[347405525,1735769439775,-1268.12,0.00010958,2]
[347405526,1735769439784,-500.0,0.00010958,2]
[347405527,1735769439793,-864.2,0.00010958,2]
[347405528,1735769439803,-1245.13,0.00010958,2]
[347405529,1735769439812,-500.0,0.00010958,2]
[347405530,1735769439821,-500.0,0.00010958,2]
[347405531,1735769439830,-3363.57969273,0.00010958,2]
[347405532,1735769439844,-771.0152849,0.00010958,2]
[347405533,1735769440130,-2182.40502237,0.00010958,2]
[347405534,1735769440139,-1592.12,0.00010958,2]
[347405535,1735769440149,-500.0,0.00010958,2]
[347405536,1735769440158,-500.0,0.00010958,2]
[347405537,1735769440168,-500.0,0.00010958,2]
[347405538,1735769440178,-510.11,0.00010958,2]
[347405539,1735769440187,-1016.13939175,0.00010958,2]
[347405540,1735769440199,-1956.16,0.00010958,2]
[347405541,1735769440210,-355.50060825,0.00010958,2]
[347405542,1735769440219,-500.0,0.00010958,2]
[347405543,1735769440228,-1222.82,0.00010958,2]
[347405544,1735769440237,-1631.5,0.00010958,2]
[347405545,1735769440247,-500.0,0.00010958,2]
[347405546,1735769440256,-500.0,0.00010958,2]
[347405547,1735769440265,-804.48,0.00010958,2]
[347405548,1735769440275,-500.0,0.00010958,2]
[347405549,1735769440284,-538.6024677,0.00010958,2]
[347405550,1735769440295,-1035.77,0.00010958,2]
[347405551,1735769440304,-771.44,0.00010958,2]
[347405552,1735769440313,-6237.47000451,0.00010958,2]
[347405553,1735769440325,-1554.91999549,0.00010958,2]
[347405554,1735769440334,-218.00393731,0.00010958,2]
[347405555,1735769440346,-281.99606269,0.00010958,2]
[347405556,1735769440355,-2121.36,0.00010958,2]
[347405557,1735769440364,-2632.07,0.00010958,2]
[347405558,1735769440374,-500.0,0.00010958,2]
[347405559,1735769440383,-500.0,0.00010958,2]
[347405560,1735769440392,-657.25045189,0.00010958,2]
[347405561,1735769440403,-1207.35954811,0.00010958,2]
[347405562,1735769440412,-1524.16,0.00010958,2]
[347405563,1735769440421,-1055.2,0.00010958,2]
[347405564,1735769440431,-500.0,0.00010958,2]
[347405565,1735769440440,-500.0,0.00010958,2]
[347405566,1735769440450,-500.0,0.00010958,2]
[347405567,1735769440459,-500.0,0.00010958,2]
[347405568,1735769440469,-500.0,0.00010958,2]
[347405569,1735769440478,-758.48,0.00010958,2]
[347405570,1735769440487,-896.98,0.00010958,2]
[347405571,1735769440496,-472.70884602,0.00010958,2]
[347405572,1735769440506,-1609.82,0.00010958,2]
[347405573,1735769440515,-794.91,0.00010958,2]
[347405574,1735769440524,-740.02,0.00010958,2]
[347405575,1735769440533,-500.0,0.00010958,2]
[347405576,1735769440542,-1749.15,0.00010958,2]
[347405577,1735769440551,-1588.99,0.00010958,2]
[347405578,1735769440561,-1046.93,0.00010958,2]
[347405579,1735769440571,-500.0,0.00010958,2]
[347405580,1735769440580,-500.0,0.00010958,2]
[347405581,1735769440590,-500.0,0.00010958,2]
[347405582,1735769440600,-500.0,0.00010958,2]
[347405583,1735769440609,-500.0,0.00010958,2]
[347405584,1735769440618,-210.47041286,0.00010958,2]
[347405585,1735769440627,-1407.03,0.00010958,2]
[347405586,1735769440636,-1248.35,0.00010958,2]
[347405587,1735769440645,-500.00000001,0.00010958,2]
[347405588,1735769440654,-1474.31,0.00010958,2]
[347405589,1735769440663,-1018.63,0.00010958,2]
[347405590,1735769440673,-5594.07,0.00010958,2]
[347405591,1735769440683,-1002.11,0.00010958,2]
[347405592,1735769440692,-1540.73,0.00010958,2]
[347405593,1735769440701,-521.03,0.00010958,2]
[347405594,1735769440711,-500.0,0.00010958,2]
[347405595,1735769440719,-7069.32,0.00010958,2]
[347405596,1735769440729,-621.99,0.00010958,2]
[347405597,1735769440740,-3608.53,0.00010958,2]
[347405598,1735769440750,-500.0,0.00010958,2]
[347405599,1735769440759,-1888.51,0.00010958,2]
[347405600,1735769440769,-5688.91,0.00010958,2]
[347405601,1735769440778,-685.53,0.00010958,2]
[347405602,1735769440787,-500.0,0.00010958,2]
[347405603,1735769440797,-500.0,0.00010958,2]
[347405604,1735769440806,-511.15,0.00010958,2]
[347405605,1735769440815,-746.48,0.00010958,2]
[347405606,1735769440824,-1051.79206079,0.00010958,2]
[347405607,1735769440837,-683.96793921,0.00010958,2]
[347405608,1735769440846,-500.0,0.00010958,2]
[347405609,1735769440857,-1508.55,0.00010958,2]
[347405610,1735769440877,-613.03,0.00010958,2]
[347405611,1735769440886,-620.97,0.00010958,2]
[347405612,1735769440896,-500.0,0.00010958,2]
[347405613,1735769440906,-541.72,0.00010958,2]
[347405614,1735769440915,-3412.29,0.00010958,2]
[347405615,1735769440924,-594.39,0.00010958,2]
[347405616,1735769440935,-1058.08206079,0.00010958,2]
[347405617,1735769441251,-300.0,0.00010958,2]
[347405618,1735769441262,-624.09793921,0.00010958,2]
[347405619,1735769441271,-795.89845558,0.00010958,2]
[347405620,1735769441282,-209.69154442,0.00010958,2]
[347405621,1735769441291,-560.75,0.00010958,2]
[347405622,1735769441300,-500.0,0.00010958,2]
[347405623,1735769441309,-2977.45,0.00010958,2]
[347405624,1735769441318,-895.52,0.00010958,2]
[347405625,1735769441326,-1710.52,0.00010958,2]
[347405626,1735769441335,-500.0,0.00010958,2]
[347405627,1735769441344,-1139.41761538,0.00010958,2]
[347405628,1735769441356,-453.77238462,0.00010958,2]
[347405629,1735769441365,-500.0,0.00010958,2]
[347405630,1735769441374,-500.0,0.00010958,2]
[347405631,1735769441383,-307.00339483,0.00010958,2]
[347405632,1735769441402,-2306.41831059,0.00010958,2]
[347405633,1735769441413,-388.47757069,0.00010958,2]